bitfinex-derivatives/quotes_SOLF0:USTF0_20241016
["timestamp","ask_amount","ask_price","bid_price","bid_amount"]
[1729074251375,10.02740692,155.99,155.97,3.206]
[1729074252467,10.02740692,155.99,155.9,1.6583]
[1729074252674,10.02740692,155.99,155.93,9.86]
[1729074253478,14.35692655,155.98,155.93,9.86]
[1729074253777,14.35692655,155.97,155.95,3.2064]
[1729074254077,11.35692655,155.96,155.93,9.84791988]
[1729074254379,9.86,155.98,155.93,9.84791988]
[1729074255370,13.0661,155.98,155.93,9.84791988]
[1729074256083,13.066,155.98,155.93,9.84791988]
[1729074256474,9.86,155.98,155.9,1.6583]
[1729074256674,9.86,155.98,155.92,9.86]
[1729074256675,3.2062,155.97,155.92,9.86]
[1729074256874,9.86,155.98,155.92,9.86]
[1729074257882,9.86,155.98,155.94,3.2066]
[1729074260284,9.86,155.99,155.91,3.4455]
[1729074260488,5.37971348,156.02,155.93,9.86]
[1729074260489,9.86,155.97,155.93,9.86]
[1729074260688,13.0659,155.99,155.97,3.2061]
[1729074262390,6.86,155.99,155.93,9.86]
[1729074262590,3.17971348,156.02,155.95,9.86]
[1729074262788,3.17971348,156.02,155.98,9.86]
[1729074262992,11.5912,156.04,155.98,9.86]
[1729074263195,9.86,156.03,155.97,9.86]
[1729074263382,9.86,156.0,155.94,9.86]
[1729074263786,9.86,156.0,155.97,3.206]
[1729074265287,6.86,156.0,155.97,3.206]
[1729074265891,3.2055,156.01,155.97,3.206]
[1729074266092,9.86,156.0,155.97,3.206]
[1729074267485,9.86,156.0,155.98,3.2059]
[1729074267999,10.0656,156.0,155.98,3.2059]
[1729074268795,10.0656,156.0,155.97,3.2061]
[1729074268996,3.2058,155.99,155.97,3.2061]
[1729074269191,6.86,156.0,155.97,3.2061]
[1729074269990,10.0656,156.0,155.97,3.2061]
[1729074270192,3.2056,156.0,155.97,3.2061]
[1729074270384,9.86,155.99,155.97,3.2061]
[1729074271193,6.86,155.99,155.97,3.2061]
[1729074271399,6.86,155.99,155.94,9.86]
[1729074271597,3.2056,156.0,155.96,9.86]
[1729074271798,9.86,156.01,155.96,9.86]
[1729074272499,9.86,156.01,155.93,5.2]
[1729074272798,9.86,156.01,155.96,9.86]
[1729074273692,13.0654,156.01,155.98,3.2058]
[1729074274003,3.2054,156.01,155.98,3.2058]
[1729074275292,3.205,156.03,156.01,3.2053]
[1729074275506,13.065,156.03,156.01,3.2053]
[1729074275800,13.065,156.03,155.97,9.86]
[1729074276096,13.065,156.03,155.98,9.86]
[1729074276398,13.065,156.03,155.99,3.2057]
[1729074276602,9.86,156.03,155.98,9.86]
[1729074277191,13.065,156.03,156.0,3.2054]
[1729074277596,13.065,156.03,155.98,9.86]
[1729074277895,16.34117346,156.04,156.02,3.2051]
[1729074278194,9.86,156.04,156.02,3.2051]
[1729074278606,13.05901192,156.04,156.02,3.2051]
[1729074278909,13.05901192,156.04,155.98,9.86]
[1729074278910,3.19901192,156.04,156.0,9.86]
[1729074279091,9.86,156.04,156.0,9.86]
[1729074279292,10.07824831,156.04,155.98,9.86]
[1729074279698,3.2051,156.03,156.01,3.2052]
[1729074279894,10.07824831,156.04,156.01,3.2052]
[1729074280096,9.86,156.03,156.01,3.2052]
[1729074280499,9.86,156.03,155.98,9.86]
[1729074280897,9.86,156.03,155.97,5.2]
[1729074281089,9.86,156.03,155.97,15.06]
[1729074281505,9.86,156.03,156.01,3.2053]
[1729074282502,9.86,156.03,155.97,15.06]
[1729074282503,9.86,156.03,155.98,3.2058]
[1729074282702,9.86,156.03,155.97,15.06]
[1729074283202,6.86,156.03,156.01,3.2052]
[1729074283800,9.86,156.02,156.0,3.2054]
[1729074285298,9.86,156.02,156.01,3.2053]
[1729074286004,13.03432522,156.02,156.01,3.2053]
[1729074286600,10.077,156.07,156.01,3.2053]
[1729074286903,9.86,156.06,156.0,9.86]
[1729074287203,13.0644,156.06,156.03,3.2048]
[1729074287697,3.2046,156.05,156.03,3.2048]
[1729074287893,9.86,156.04,156.03,3.2048]
[1729074288101,13.11159139,156.04,156.03,3.2048]
[1729074289207,10.11159139,156.04,156.03,3.2048]
[1729074291499,10.11159139,156.04,155.99,9.86]
[1729074291805,6.86,156.02,155.98,1.6776]
[1729074292605,3.26730111,156.01,155.98,1.6776]
[1729074292811,3.26730111,156.01,155.98,11.5376]
[1729074293004,6.86,156.02,156.01,3.2054]
[1729074293510,10.11660929,156.02,156.01,3.2054]
[1729074294212,6.86,156.02,156.01,3.2054]
[1729074294412,6.9960535,156.02,156.01,3.2054]
[1729074295110,5.2,156.07,155.98,11.5376]
[1729074295111,3.2045,156.05,156.02,3.205]
[1729074295311,9.86,156.04,156.02,3.205]
[1729074295512,9.86,156.04,155.99,9.86]
[1729074296110,9.86,156.05,156.04,3.2047]
[1729074296911,6.86,156.05,156.04,3.2047]
[1729074297517,6.86,156.05,156.02,3.2051]
[1729074297709,9.86,156.04,156.02,3.2051]
[1729074297908,3.14430721,156.03,156.02,3.2051]
[1729074298613,9.86,156.03,155.99,3.2057]
[1729074298910,9.86,156.01,155.96,15.06]
[1729074299810,9.86,156.01,155.99,3.2056]
[1729074299811,6.86,156.01,155.99,3.2056]
[1729074300322,10.0655,156.01,155.98,3.2059]
[1729074301414,9.86,155.99,155.98,3.2059]
[1729074301622,9.86,155.99,155.91,129.53375327]
[1729074301915,9.86,155.96,155.91,129.53375327]
[1729074302214,5.2,155.99,155.91,129.53375327]
[1729074302215,9.86,155.94,155.91,119.67375327]
[1729074302414,6.86,155.94,155.91,119.67375327]
[1729074302615,6.86,155.94,155.93,3.207]
[1729074303015,9.86,155.96,155.91,119.67375327]
[1729074303218,5.2,155.99,155.92,9.86]
[1729074303219,9.86,155.97,155.92,9.86]
[1729074304122,9.86,155.97,155.94,3.2066]
[1729074304617,9.86,155.95,155.93,3.2069]
[1729074304920,13.14224708,155.95,155.93,3.2069]
[1729074305116,10.14224708,155.95,155.93,3.2069]
[1729074305516,10.14224708,155.95,155.89,9.86]
[1729074305722,10.14224708,155.95,155.94,3.2068]
[1729074305922,5.2,155.99,155.91,9.86]
[1729074306124,9.86,155.98,155.96,3.2062]
[1729074306322,9.86,155.98,155.93,9.86]
[1729074306711,9.86,155.98,155.94,3.2067]
[1729074307017,9.86,156.0,155.94,9.86]
[1729074307720,13.0656,156.0,155.97,3.206]
[1729074308126,10.0656,156.0,155.97,3.206]
[1729074308725,9.86,155.98,155.95,3.2064]
[1729074309621,13.0661,155.98,155.95,3.2064]
[1729074310722,10.0661,155.98,155.95,3.2064]
[1729074313127,5.2,156.01,155.93,1.654]
[1729074313325,9.86,155.97,155.96,3.2063]
[1729074313726,9.86,155.99,155.93,11.514]
[1729074314128,9.86,155.99,155.97,3.2061]
[1729074314726,9.86,155.98,155.92,5.2]
[1729074315027,5.2,156.01,155.89,5.2]
[1729074315028,9.86,155.96,155.89,5.2]
[1729074315233,9.86,155.94,155.89,9.86]
[1729074315527,9.86,155.91,155.87,1.7118]
[1729074315824,9.86,155.92,155.87,9.86]
[1729074316030,9.86,155.93,155.92,3.2072]
[1729074316421,9.86,155.95,155.89,9.86]
[1729074316832,9.86,155.95,155.94,3.2068]
[1729074317232,9.86,155.96,155.94,3.2068]
[1729074318333,9.86,155.98,155.93,9.86]
[1729074319235,6.86,155.98,155.93,9.86]
[1729074319440,6.86,155.98,155.96,3.2062]
[1729074321630,6.86,155.98,155.93,9.86]
[1729074321833,6.86,155.98,155.97,3.2062]
[1729074322033,5.2,155.99,155.97,3.2062]
[1729074322235,9.86,155.98,155.97,3.2062]
[1729074322434,9.86,155.98,155.93,9.86]
[1729074322635,9.86,155.98,155.96,3.2063]
[1729074323835,9.86,156.0,155.94,9.86]
[1729074324030,9.86,156.0,155.96,9.86]
[1729074324533,9.86,156.0,155.99,3.2056]
[1729074324929,6.86,156.0,155.99,3.2056]
[1729074325736,9.86,156.02,156.01,3.2054]
[1729074327434,6.86,156.02,156.01,3.2054]
[1729074327832,6.86,156.02,156.0,3.2055]
[1729074328337,3.19560097,156.03,155.95,9.86]
[1729074328536,9.86,156.01,155.96,9.86]
[1729074329129,9.86,156.01,155.97,3.2061]
[1729074329329,9.86,156.01,155.96,9.86]
[1729074329540,9.86,156.01,155.94,5.2]
[1729074329833,9.86,155.99,155.97,3.206]
[1729074330039,6.86,155.99,155.94,9.86]
[1729074331434,6.86,155.99,155.98,3.206]
[1729074332031,6.86,155.99,155.94,9.86]
[1729074332644,3.86,155.99,155.97,3.2061]
[1729074335339,0.86,155.99,155.94,9.86]
[1729074335539,0.86,155.99,155.98,3.206]
[1729074337737,0.86,155.99,155.92,11.6647]
[1729074337934,3.26035056,156.04,155.89,129.54227085]
[1729074337935,9.86,155.94,155.89,129.54227085]
[1729074338340,8.8155,155.98,155.89,119.68227085]
[1729074338341,9.86,155.93,155.89,119.68227085]
[1729074338751,9.86,155.92,155.9,3.2075]
[1729074338937,9.86,155.92,155.86,9.86]
[1729074339137,1.8347,155.97,155.85,20.375]
[1729074339138,9.86,155.9,155.85,20.375]
[1729074339436,9.86,155.89,155.87,3.2081]
[1729074340041,9.86,155.88,155.85,3.2086]
[1729074340235,9.86,155.86,155.85,3.2086]
[1729074340436,9.86,155.86,155.82,15.06]
[1729074340741,6.86,155.86,155.85,3.2086]
[1729074341745,9.86,155.88,155.85,3.2086]
[1729074342250,9.86,155.88,155.86,3.2084]
[1729074343044,9.86,155.88,155.83,9.86]
[1729074343253,9.86,155.87,155.82,5.2]
[1729074343943,9.86,155.87,155.82,15.06]
[1729074344138,9.86,155.88,155.82,15.06]
[1729074344345,6.86,155.88,155.82,15.06]
[1729074344544,6.86,155.88,155.82,9.86]
[1729074344953,9.86,155.86,155.84,3.2087]
[1729074346348,13.07919313,155.87,155.84,3.2087]
[1729074346551,9.86,155.87,155.84,3.2087]
[1729074346851,9.86,155.87,155.85,3.2086]
[1729074347046,13.00825468,155.87,155.85,3.2086]
[1729074348547,10.00825468,155.87,155.85,3.2086]
[1729074348755,9.86,155.86,155.83,3.209]
[1729074349148,9.86,155.84,155.79,129.60947148]
[1729074349445,9.86,155.83,155.79,119.74947148]
[1729074349646,9.86,155.82,155.79,119.74947148]
[1729074349855,9.86,155.83,155.79,119.74947148]
[1729074350054,9.86,155.83,155.8,3.2096]
[1729074350260,9.86,155.81,155.77,1.7834]
[1729074350448,9.86,155.81,155.75,9.86]
[1729074350649,9.86,155.81,155.78,3.2099]
[1729074350856,9.86,155.81,155.75,9.86]
[1729074351055,9.86,155.8,155.69,1.7169]
[1729074351356,6.86,155.8,155.74,9.86]
[1729074351857,10.02958424,155.8,155.74,9.86]
[1729074352052,10.02958424,155.8,155.78,3.21]
[1729074353460,9.86,155.81,155.79,3.2099]
[1729074353851,8.46463003,155.82,155.77,9.86]
[1729074354059,18.32463003,155.82,155.77,9.86]
[1729074354753,15.32463003,155.82,155.77,9.86]
[1729074355150,15.32463003,155.82,155.8,3.2097]
[1729074358566,12.06,155.82,155.77,9.86]
[1729074358761,9.86,155.83,155.81,3.2095]
[1729074359065,3.20694664,155.82,155.81,3.2095]
[1729074359967,9.86,155.83,155.82,3.2093]
[1729074360167,3.23424117,155.84,155.79,9.86]
[1729074360571,9.86,155.85,155.82,3.2091]
[1729074360767,9.86,155.85,155.79,9.86]
[1729074360975,9.86,155.86,155.82,3.2092]
[1729074361273,9.86,155.86,155.81,9.86]
[1729074361474,13.08313775,155.86,155.81,9.86]
[1729074361662,13.08313775,155.86,155.84,3.2088]
[1729074362075,13.08313775,155.86,155.81,9.86]
[1729074362076,9.86,155.86,155.81,9.86]
[1729074362266,15.06,155.87,155.85,3.2086]
[1729074362767,13.09276864,155.87,155.82,9.86]
[1729074363073,9.86,155.86,155.84,3.2088]
[1729074363871,6.86,155.86,155.84,3.2088]
[1729074364668,9.86,155.85,155.75,1.8249]
[1729074364869,9.86,155.79,155.75,1.8249]
[1729074366375,9.86,155.79,155.78,3.21]
[1729074367973,15.06,155.83,155.81,3.2093]
[1729074368564,9.86,155.82,155.8,3.2096]
[1729074369260,5.2,155.83,155.78,9.86]
[1729074369469,9.86,155.85,155.8,9.86]
[1729074369975,20.61,155.87,155.78,3.6372]
[1729074370272,23.76580566,155.87,155.78,3.6372]
[1729074370473,23.76580566,155.87,155.82,3.2091]
[1729074370774,23.76580566,155.87,155.78,3.6372]
[1729074371475,18.56580566,155.87,155.78,3.6372]
[1729074371675,18.56580566,155.87,155.84,3.2087]
[1729074373867,5.4074,155.89,155.81,5.2]
[1729074373868,24.1519,155.89,155.81,5.2]
[1729074374262,18.9519,155.89,155.81,5.2]
[1729074374570,3.26155847,155.88,155.86,3.2083]
[1729074374869,18.9519,155.89,155.85,3.2086]
[1729074375271,15.41,155.87,155.81,5.2]
[1729074375571,3.235561,155.86,155.83,3.2089]
[1729074376471,3.235561,155.86,155.84,3.2087]
[1729074376869,3.235561,155.86,155.81,5.2]
[1729074377073,18.9519,155.89,155.81,5.2]
[1729074377271,17.2127,155.89,155.83,3.209]
[1729074377574,17.2127,155.89,155.81,5.2]
[1729074377975,3.17714695,155.88,155.86,3.2083]
[1729074378272,17.2127,155.89,155.81,5.2]
[1729074378667,17.2127,155.89,155.85,3.2086]
[1729074379073,15.41,155.89,155.86,3.2083]
[1729074379371,20.61,155.91,155.81,20.61]
[1729074379673,20.61,155.91,155.82,1.8903]
[1729074380480,15.41,155.91,155.82,1.8903]
[1729074381273,5.2,155.92,155.83,15.41]
[1729074381470,5.2,155.92,155.82,1.8903]
[1729074381471,3.20137321,155.96,155.92,3.2072]
[1729074381668,20.61,155.95,155.86,5.2]
[1729074381867,20.61,155.95,155.86,7.1171]
[1729074382068,15.41,155.95,155.86,9.0533]
[1729074382775,5.0435058,155.97,155.88,15.41]
[1729074382967,3.1440058,155.97,155.88,15.41]
[1729074384276,20.61,155.98,155.88,15.41]
[1729074384472,20.61,155.98,155.89,1.8809]
[1729074384674,20.61,155.98,155.9,5.2]
[1729074384976,15.41,155.98,155.9,5.2]
[1729074385574,15.41,155.98,155.94,3.2067]
[1729074385774,15.41,155.98,155.9,5.2]
[1729074386584,15.41,155.98,155.94,3.2066]
[1729074388271,15.41,155.98,155.9,5.2]
[1729074388484,15.41,155.98,155.95,3.2066]
[1729074389074,8.48481334,155.99,155.96,3.2063]
[1729074389381,3.28481334,155.99,155.9,20.61]
[1729074389778,3.28481334,155.99,155.97,3.206]
[1729074390283,15.41,156.0,155.93,3.207]
[1729074390480,3.28203655,155.99,155.9,20.61]
[1729074390787,15.41,155.98,155.91,5.2]
[1729074391178,15.41,155.98,155.94,3.2066]
[1729074391483,3.27530055,155.97,155.91,5.2]
[1729074391683,3.27530055,155.97,155.95,3.2065]
[1729074391874,3.27530055,155.97,155.91,5.2]
[1729074392588,3.27530055,155.97,155.94,3.2068]
[1729074394382,3.27530055,155.97,155.91,5.2]
[1729074394787,24.47,156.08,155.93,15.41]
[1729074394977,15.41,156.04,155.93,17.1562]
[1729074395176,18.58093925,156.04,155.93,17.1562]
[1729074395584,3.17093925,156.04,155.95,15.41]
[1729074395786,15.41,156.04,155.95,15.41]
[1729074396386,15.41,156.04,155.96,5.2]
[1729074396590,15.41,156.04,155.99,3.2056]
[1729074397184,17.3711,156.04,155.99,3.2056]
[1729074397385,17.3711,156.04,155.98,3.2059]
[1729074397686,19.1809,156.04,155.98,3.2059]
[1729074398188,19.1809,156.04,155.96,5.2]
[1729074398189,15.41,156.02,155.97,3.2061]
[1729074398493,18.55575509,156.02,155.96,5.2]
[1729074399584,18.55575509,156.02,155.95,5.2]
[1729074399990,18.55575509,156.02,155.97,3.206]
[1729074400688,18.55575509,156.02,155.96,3.2062]
[1729074400885,18.55575509,156.02,155.95,5.2]
[1729074401285,18.55575509,156.02,155.97,3.2062]
[1729074403289,18.55575509,156.02,155.98,3.2059]
[1729074407095,18.55575509,156.02,155.97,3.206]
[1729074407499,18.55575509,156.02,155.95,5.2]
[1729074407795,9.86,156.0,155.97,3.2061]
[1729074411898,3.14575509,156.02,155.97,3.206]
[1729074412092,9.86,156.0,155.94,15.06]
[1729074412300,3.16539693,155.99,155.94,15.06]
[1729074413401,3.16539693,155.99,155.98,3.206]
[1729074413798,9.86,156.0,155.98,3.206]
[1729074414004,1.8147,156.03,155.98,3.206]
[1729074414200,9.86,155.99,155.98,3.206]
[1729074415410,4.95872635,156.03,155.98,3.206]
[1729074415608,9.86,156.02,155.96,9.86]
[1729074416001,9.86,156.02,155.99,3.2056]
[1729074416905,9.86,156.02,156.0,3.2055]
[1729074418012,4.95872635,156.03,155.96,9.86]
[1729074418013,9.86,156.01,155.99,3.2057]
[1729074420506,9.86,156.01,155.98,3.2058]
[1729074421111,9.86,155.99,155.97,3.2061]
[1729074422412,9.86,155.99,155.96,3.2062]
[1729074422614,9.86,155.99,155.94,15.04]
[1729074423112,13.00402635,156.03,155.97,9.86]
[1729074423311,9.86,156.03,155.98,5.18]
[1729074423511,9.86,156.03,156.02,3.2051]
[1729074423914,13.14449438,156.03,156.02,3.2051]
[1729074424311,13.14449438,156.03,156.01,3.2053]
[1729074424712,13.14449438,156.03,155.98,15.04]
[1729074425415,13.14449438,156.03,156.02,3.2051]
[1729074426222,13.14449438,156.03,156.01,3.2052]
[1729074427219,9.86,156.02,155.98,5.18]
[1729074428521,9.86,156.02,156.01,3.2054]
[1729074431326,3.28449438,156.03,156.01,3.2054]
[1729074431327,13.14449438,156.03,156.01,3.2054]
[1729074431531,9.86,156.03,156.01,3.2054]
[1729074431829,9.86,156.03,155.98,15.04]
[1729074432035,9.86,156.03,156.02,3.2051]
[1729074432235,13.02213771,156.03,156.02,3.2051]
[1729074437237,3.16213771,156.03,156.02,3.2051]
[1729074437540,5.8319,156.09,156.04,3.2047]
[1729074437736,9.86,156.06,156.04,3.2047]
[1729074438339,9.86,156.05,156.02,3.205]
[1729074438742,9.86,156.05,155.99,9.86]
[1729074438943,11.0119,156.09,156.04,3.2047]
[1729074439143,9.86,156.05,155.99,15.04]
[1729074440748,9.86,156.03,155.99,15.04]
[1729074440947,3.199448,156.02,155.99,15.04]
[1729074441142,3.199448,156.02,155.99,9.86]
[1729074441349,9.86,156.02,155.97,9.86]
[1729074441545,13.10561238,156.02,155.97,9.86]
[1729074442045,3.24561238,156.02,156.0,3.2054]
[1729074442349,9.86,156.03,156.0,3.2054]
[1729074442748,13.14376017,156.03,156.0,3.2054]
[1729074445650,13.14376017,156.03,155.99,3.2057]
[1729074445846,13.14376017,156.03,155.98,9.86]
[1729074446243,13.14376017,156.03,156.01,3.2052]
[1729074446552,13.14376017,156.03,155.98,9.86]
[1729074447446,3.28376017,156.03,155.95,1.9479]
[1729074447750,9.86,156.0,155.95,16.9879]
[1729074447948,3.15453151,155.99,155.95,16.9879]
[1729074448153,3.15453151,155.99,155.98,3.206]
[1729074448351,9.86,156.0,155.95,11.8079]
[1729074448542,9.86,156.0,155.95,15.04]
[1729074448948,13.12279899,156.0,155.97,3.206]
[1729074449151,9.86,155.99,155.95,5.18]
[1729074449549,9.86,155.99,155.97,3.206]
[1729074451658,13.12279899,156.0,155.98,3.206]
[1729074451860,13.12279899,156.0,155.95,15.04]
[1729074452663,13.12279899,156.0,155.98,3.206]
[1729074453152,3.26279899,156.0,155.98,3.206]
[1729074453458,9.86,156.0,155.98,3.206]
[1729074453653,13.08099801,156.0,155.98,3.206]
[1729074454252,3.22099801,156.0,155.99,3.2058]
[1729074454457,9.86,156.03,155.99,9.86]
[1729074455053,3.20734769,156.02,155.99,9.86]
[1729074455255,9.86,156.04,155.99,9.86]
[1729074457763,9.86,156.03,155.99,9.86]
[1729074457961,3.21332527,156.02,155.99,9.86]
[1729074458266,3.21332527,156.02,156.01,3.2052]
[1729074458954,9.86,156.03,156.01,3.2052]
[1729074459366,12.99989433,156.03,156.02,3.2051]
[1729074461567,16.20489433,156.03,156.0,3.2054]
[1729074462268,16.20489433,156.03,156.01,3.2053]
[1729074462764,3.13989433,156.03,155.98,5.18]
[1729074463073,9.86,156.03,155.98,5.18]
[1729074463262,3.24699448,156.02,155.99,3.2057]
[1729074463566,3.24699448,156.02,155.99,9.86]
[1729074463961,3.24699448,156.02,156.01,3.2054]
[1729074464464,5.18,156.06,155.98,5.18]
[1729074464657,9.86,156.03,155.98,5.18]
[1729074464861,9.86,156.03,156.02,3.2051]
[1729074465056,13.11853305,156.03,156.02,3.2051]
[1729074465363,13.11853305,156.03,155.93,123.19160569]
[1729074465564,9.86,155.96,155.92,9.86]
[1729074466365,14.58768649,155.95,155.92,9.86]
[1729074466563,14.58768649,155.94,155.92,9.86]
[1729074466764,14.58768649,155.93,155.92,9.86]
[1729074467466,14.58768649,155.93,155.92,13.0672]
[1729074470768,14.58768649,155.93,155.92,3.2072]
[1729074471076,14.58768649,155.93,155.92,13.0672]
[1729074471464,3.1719015,155.95,155.93,3.2068]
[1729074471661,13.0663,155.97,155.92,9.86]
[1729074472083,9.86,155.94,155.9,30.19977]
[1729074472274,3.23829685,155.93,155.9,30.19977]
[1729074472468,3.23829685,155.93,155.91,3.2073]
[1729074472667,13.0668,155.94,155.91,3.2073]
[1729074472867,9.86,155.93,155.9,30.19977]
[1729074473069,3.26203239,155.92,155.9,30.19977]
[1729074474076,3.26203239,155.92,155.9,33.40727]
[1729074475073,3.27549939,155.91,155.9,30.19977]
[1729074476171,9.86,155.92,155.9,30.19977]
[1729074476375,3.2074,155.91,155.9,30.19977]
[1729074477472,3.2074,155.91,155.9,27.11117]
[1729074477665,3.2074,155.91,155.9,15.84537]
[1729074477866,9.86,155.92,155.82,9.86]
[1729074478076,9.86,155.87,155.82,9.86]
[1729074478385,3.1582443,155.86,155.82,9.86]
[1729074479476,3.1582443,155.86,155.85,3.2085]
[1729074480076,13.0682,155.88,155.85,3.2085]
[1729074480273,3.16369951,155.87,155.86,3.2084]
[1729074480479,3.16369951,155.87,155.86,13.0684]
[1729074480975,5.18,155.9,155.86,9.86]
[1729074481279,5.18,155.9,155.87,3.208]
[1729074481579,3.13618419,155.89,155.87,3.208]
[1729074481776,9.86,155.92,155.87,9.86]
[1729074481979,3.1685987,155.91,155.9,3.2076]
[1729074482482,36.09550708,155.94,155.91,3.2074]
[1729074482672,18.32413558,155.94,155.89,9.86]
[1729074482867,8.46413558,155.94,155.9,9.86]
[1729074483180,18.32413558,155.94,155.86,3.852]
[1729074483375,9.86,155.91,155.86,1.9645]
[1729074483572,13.0676,155.91,155.88,3.2079]
[1729074483880,9.86,155.91,155.86,11.8245]
[1729074486077,9.86,155.91,155.88,3.2078]
[1729074487083,9.86,155.93,155.91,3.2074]
[1729074488083,21.53103558,155.94,155.91,3.2074]
[1729074489180,3.28413558,155.94,155.9,9.86]
[1729074489374,15.04,155.95,155.9,9.86]
[1729074490183,9.86,155.95,155.9,9.86]
[1729074490385,13.0666,155.95,155.92,3.207]
[1729074490583,13.0666,155.95,155.9,9.86]
[1729074491687,3.1459973,155.94,155.9,9.86]
[1729074491888,9.86,155.95,155.9,9.86]
[1729074492088,9.86,155.95,155.93,3.2068]
[1729074492782,9.86,155.94,155.89,9.86]
[1729074492988,9.86,155.94,155.86,7.1445]
[1729074492989,9.86,155.92,155.86,1.9645]
[1729074493182,9.86,155.92,155.87,9.86]
[1729074493791,3.17997497,155.91,155.87,9.86]
[1729074495492,3.17997497,155.91,155.9,3.2076]
[1729074497389,13.0671,155.93,155.9,3.2076]
[1729074497694,16.21863483,155.93,155.9,3.2076]
[1729074498389,16.21863483,155.93,155.91,3.2074]
[1729074498785,16.21863483,155.93,155.88,9.86]
[1729074498986,9.86,155.92,155.9,3.2075]
[1729074499686,9.86,155.92,155.91,3.2074]
[1729074500493,13.01153483,155.93,155.91,3.2074]
[1729074502494,16.21863483,155.93,155.91,3.2074]
[1729074503393,9.86,155.92,155.87,9.86]
[1729074503595,9.86,155.9,155.89,3.2077]
[1729074503795,13.11954953,155.9,155.89,3.2077]
[1729074508001,13.11954953,155.9,155.85,9.86]
[1729074508198,16.32714953,155.9,155.85,9.86]
[1729074508706,16.32714953,155.9,155.87,3.2081]
[1729074508899,16.32714953,155.9,155.85,9.86]
[1729074510500,9.86,155.89,155.84,15.04]
[1729074510805,16.32724953,155.9,155.88,3.2079]
[1729074511702,16.32724953,155.9,155.87,3.2081]
[1729074512596,16.32724953,155.9,155.86,3.2083]
[1729074512597,13.0679,155.89,155.86,3.2083]
[1729074513200,16.29995005,155.89,155.86,3.2083]
[1729074516698,13.09205005,155.89,155.84,9.86]
[1729074516900,13.09205005,155.89,155.88,3.208]
[1729074517099,3.23205005,155.89,155.88,3.208]
[1729074517397,13.0674,155.91,155.89,3.2078]
[1729074517704,16.30832529,155.91,155.89,3.2078]
[1729074523503,16.30832529,155.91,155.82,11.3378]
[1729074523504,3.24092529,155.91,155.9,3.2076]
[1729074523705,9.86,155.92,155.88,9.86]
[1729074523912,9.86,155.91,155.89,3.2077]
[1729074524103,34.3,155.9,155.78,9.86]
[1729074524298,9.86,155.83,155.78,9.86]
[1729074524502,9.86,155.81,155.76,17.0906]
[1729074525214,9.86,155.81,155.8,3.2097]
[1729074530216,9.86,155.81,155.79,3.2099]
[1729074530421,9.86,155.8,155.79,3.2099]
[1729074534019,3.16165132,155.83,155.82,3.2093]
[1729074534219,9.86,155.83,155.82,3.2093]